bitfinex/quotes_SOLUSD_20250414
["timestamp","ask_amount","ask_price","bid_price","bid_amount"]
[1744589742323,2.1907,129.57,129.5,82.6]
[1744589742518,6.6509,129.56,129.46,88.7795]
[1744589742718,6.6509,129.56,129.46,6.1795]
[1744589743724,8.8416,129.54,129.44,8.0]
[1744589743922,16.8416,129.54,129.44,8.0]
[1744589744344,16.8416,129.54,129.42,6.1814]
[1744589745240,16.8416,129.54,129.42,21.6349]
[1744589745944,21.6165,129.53,129.42,15.4535]
[1744589746142,7.07738471,129.52,129.41,6.1819]
[1744589746327,6.6509,129.51,129.41,6.1819]
[1744589746527,14.6509,129.51,129.41,6.1819]
[1744589747222,6.1776,129.5,129.39,21.6388]
[1744589748030,21.6216,129.5,129.39,21.6388]
[1744589748221,21.6216,129.5,129.39,6.1828]
[1744589748425,8.726,129.49,129.39,6.1828]
[1744589749224,21.6249,129.48,129.37,6.1838]
[1744589749540,6.1785,129.48,129.38,18.64964886]
[1744589749727,8.726,129.49,129.42,19.07613357]
[1744589749928,6.5715,129.53,129.42,21.41053357]
[1744589750428,6.5715,129.53,129.43,0.42648471]
[1744589750765,6.5715,129.53,129.46,18.64964886]
[1744589751071,6.5715,129.53,129.46,26.64964886]
[1744589751234,6.5715,129.56,129.48,21.6249]
[1744589752468,12.7465,129.56,129.47,6.179]
[1744589754858,28.1833,129.56,129.47,6.179]
[1744589756169,12.7465,129.56,129.47,21.6265]
[1744589756379,6.5715,129.56,129.48,18.64964886]
[1744589757577,6.5715,129.56,129.49,6.178]
[1744589757982,6.5715,129.56,129.5,18.64964886]
[1744589758479,2.1545396,129.58,129.5,18.64964886]
[1744589758665,3.96e-05,129.58,129.52,18.64964886]
[1744589758965,3.96e-05,129.58,129.53,0.42648471]
[1744589759544,3.96e-05,129.58,129.54,21.6148]
[1744589760348,3.96e-05,129.58,129.55,18.64964886]
[1744589761360,3.96e-05,129.58,129.54,21.6148]
[1744589761968,8.2860396,129.62,129.54,21.6148]
[1744589762275,14.4581396,129.62,129.54,21.6148]
[1744589762648,8.2860396,129.62,129.55,18.64964886]
[1744589763278,0.03,129.63,129.56,8.38648471]
[1744589763464,0.03,129.63,129.58,0.42648471]
[1744589763660,0.03,129.63,129.56,10.39102314]
[1744589763661,0.03,129.63,129.59,6.1733]
[1744589763868,0.03,129.63,129.58,18.64964886]
[1744589764069,0.03,129.63,129.59,2.28886157]
[1744589764281,6.0292,129.69,129.64,18.64964886]
[1744589764674,6.0292,129.72,129.64,18.64964886]
[1744589764986,0.03,129.71,129.64,18.64964886]
[1744589765159,0.03,129.71,129.65,0.42648471]
[1744589765560,0.03,129.71,129.66,6.1699]
[1744589766282,0.03,129.71,129.62,90.56]
[1744589766283,0.03,129.71,129.62,105.9887]
[1744589766476,0.03,129.71,129.62,23.3887]
[1744589766781,0.03,129.71,129.63,40.24954886]
[1744589767781,0.03,129.71,129.63,6.1714]
[1744589768364,0.03,129.71,129.61,6.1723]
[1744589769087,0.03,129.71,129.62,18.64964886]
[1744589769279,0.03,129.71,129.61,21.6032]
[1744589769480,0.03,129.71,129.62,18.64964886]
[1744589769680,0.03,129.71,129.63,6.1714]
[1744589770374,0.03,129.71,129.63,21.5999]
[1744589770568,0.03,129.71,129.64,18.64964886]
[1744589770769,0.03,129.71,129.64,101.24964886]
[1744589771079,0.03,129.71,129.64,82.6]
[1744589771569,0.03,129.71,129.63,6.1714]
[1744589772183,0.03,129.71,129.62,88.7717]
[1744589772401,0.03,129.71,129.62,6.1717]
[1744589773166,0.03,129.71,129.6,6.1728]
[1744589773491,0.45648471,129.71,129.6,6.1728]
[1744589773786,8.2436,129.68,129.58,6.1737]
[1744589773986,14.1295,129.67,129.58,6.1737]
[1744589774376,29.5532,129.67,129.58,6.1737]
[1744589774577,29.5532,129.67,129.57,82.6]
[1744589774762,6.0292,129.65,129.56,6.1746]
[1744589775384,13.9892,129.65,129.56,6.1746]
[1744589775585,6.0292,129.65,129.58,0.14216157]
[1744589775770,272.63,129.71,129.61,44.64964886]
[1744589775771,6.0292,129.69,129.61,44.64964886]
[1744589775973,12.1979,129.69,129.62,6.1718]
[1744589776288,6.0292,129.69,129.62,6.1718]
[1744589776581,6.0292,129.69,129.62,21.6015]
[1744589777371,12.1978,129.69,129.62,21.6015]
[1744589777975,12.1978,129.69,129.62,6.1718]
[1744589778274,6.0292,129.69,129.62,6.1718]
[1744589778482,12.1978,129.69,129.62,6.1718]
[1744589779179,6.0292,129.69,129.63,18.64964886]
[1744589779386,0.03,129.71,129.64,0.42648471]
[1744589779563,0.03,129.71,129.64,82.6]
[1744589779893,0.03,129.71,129.65,6.1704]
[1744589781183,0.03,129.71,129.65,21.5965]
[1744589781981,0.03,129.71,129.66,18.64964886]
[1744589782190,0.03,129.71,129.66,101.24964886]
[1744589782685,0.03,129.71,129.67,0.14216157]
[1744589782884,0.03,129.71,129.68,0.28432314]
[1744589783786,0.03,129.71,129.69,0.14216157]
[1744589784395,0.03,129.71,129.7,24.81764886]
[1744589784580,0.03,129.71,129.7,107.41764886]
[1744589785387,0.03,129.71,129.7,107.84413357]
[1744589786170,0.0001,129.71,129.7,107.84413357]
[1744589787799,0.03,129.78,129.73,0.42648471]
[1744589787994,0.03,129.78,129.73,82.5999]
[1744589788294,0.03,129.78,129.72,6.1671]
[1744589788491,0.03,129.78,129.72,21.5849]
[1744589789399,0.03,129.78,129.73,18.64964886]
[1744589789600,0.03,129.78,129.72,6.1671]
[1744589790113,0.03,129.77,129.74,2.2214]
[1744589790282,0.03,129.77,129.76,6.59168471]
[1744589790481,0.03,129.77,129.76,89.19158471]
[1744589790881,0.03,129.78,129.76,107.84123357]
[1744589791097,0.03,129.78,129.76,89.19158471]
[1744589791294,0.03,129.78,129.77,18.64964886]
[1744589792402,0.03,129.78,129.77,24.81434886]
[1744589794598,0.03,129.78,129.77,25.24083357]
[1744589795276,5.0980396,129.84,129.78,0.42648471]
[1744589795481,2.7870396,129.84,129.8,0.42648471]
[1744589795695,2.7870396,129.84,129.79,18.64964886]
[1744589795890,8.4774,129.83,129.75,6.1657]
[1744589796210,6.4074,129.82,129.75,6.1657]
[1744589796890,12.5698,129.82,129.74,18.64964886]
[1744589798014,12.5698,129.82,129.75,6.1657]
[1744589799303,12.5698,129.82,129.73,6.1666]
[1744589799494,8.7229,129.81,129.71,88.7674]
[1744589799695,8.7229,129.81,129.71,6.1675]
[1744589800515,8.7229,129.81,129.72,18.64964886]
[1744589800803,8.7229,129.81,129.73,0.42648471]
[1744589801505,14.886,129.81,129.74,6.1661]
[1744589801809,14.886,129.81,129.74,88.766]
[1744589806588,14.886,129.81,129.74,82.5999]
[1744589806791,30.2931,129.81,129.72,82.5999]
[1744589806989,6.4469,129.8,129.72,82.5999]
[1744589807204,8.2,129.79,129.72,82.5999]
[1744589807404,8.2,129.79,129.72,88.7669]
[1744589807603,8.2,129.79,129.72,82.5999]
[1744589808712,6.1642,129.78,129.72,82.5999]
[1744589810288,21.5748,129.78,129.72,82.5999]
[1744589811987,21.5748,129.78,129.67,88.7693]
[1744589811988,8.63,129.77,129.67,88.7693]
[1744589812193,0.42648471,129.75,129.61,8.263]
[1744589812393,8.63,129.73,129.62,6.1718]
[1744589812914,21.5849,129.72,129.62,6.1718]
[1744589813712,2.1584,129.69,129.61,0.063]
[1744589814216,8.2,129.68,129.61,0.063]
[1744589814796,6.1695,129.67,129.61,0.063]
[1744589820418,6.4716,129.66,129.61,0.063]
[1744589821615,2.1584,129.65,129.61,0.063]
[1744589821806,0.7525,129.63,129.56,0.063]
[1744589822008,8.7525,129.63,129.56,0.063]
[1744589822218,8.7525,129.63,129.56,6.2376]
[1744589822525,6.1718,129.62,129.56,0.063]
[1744589824123,14.924,129.63,129.56,0.063]
[1744589824303,8.7525,129.63,129.56,0.063]
[1744589824500,14.924,129.63,129.56,0.063]
[1744589826024,30.3525,129.63,129.56,0.063]
[1744589826630,6.75298471,129.62,129.56,0.063]
[1744589827010,2.2004,129.61,129.56,0.063]
[1744589827206,6.4757,129.6,129.56,0.063]
[1744589828508,21.6065,129.59,129.56,0.063]
[1744589828715,8.0,129.58,129.56,0.063]
[1744589829523,6.4757,129.6,129.56,0.063]
[1744589829723,12.6486,129.6,129.56,0.063]
[1744589830324,28.0806,129.6,129.56,0.063]
[1744589830532,12.6486,129.6,129.56,0.063]
[1744589831125,6.4757,129.6,129.56,0.063]
[1744589831735,12.6485,129.6,129.56,0.063]
[1744589838046,0.42648471,129.59,129.56,0.063]
[1744589838245,110.9805,129.6,129.56,0.063]
[1744589838447,95.5485,129.6,129.56,0.063]
[1744589838629,0.42648471,129.59,129.56,0.063]
[1744589839043,110.9805,129.6,129.56,0.063]
[1744589839828,8.02,129.59,129.56,0.063]
[1744589840347,6.1737,129.58,129.56,0.063]
[1744589841447,14.1934,129.59,129.56,0.063]
[1744589842933,29.6266,129.59,129.56,0.063]
[1744589843851,14.1934,129.59,129.56,0.063]
[1744589844058,4.01731436,129.63,129.56,0.063]
[1744589844238,8.02,129.63,129.56,0.063]
[1744589844738,0.14216157,129.56,129.52,0.063]
[1744589844946,8.02,129.55,129.52,0.063]
[1744589845956,6.1756,129.54,129.52,0.063]
[1744589846637,8.02,129.55,129.52,0.063]
[1744589846939,6.1742,129.57,129.52,0.063]
[1744589847855,21.6098,129.57,129.52,0.063]
[1744589849950,6.1742,129.57,129.52,0.063]
[1744589850548,8.02,129.59,129.52,0.063]
[1744589850549,6.1738,129.58,129.52,2.2081]
[1744589851261,14.1934,129.59,129.52,2.2081]
[1744589851764,8.80956157,129.64,129.52,84.808]
[1744589851765,32.0348,129.64,129.52,84.808]
[1744589851938,6.1714,129.63,129.54,6.1756]
[1744589852860,6.1714,129.63,129.54,21.6148]
[1744589853076,6.1714,129.63,129.56,2.1525]
[1744589853246,6.1714,129.63,129.57,6.0392]
[1744589854264,21.5949,129.66,129.58,6.1737]
[1744589854653,0.03,129.64,129.58,6.1737]
[1744589855760,0.03,129.64,129.57,16.0392]
[1744589856338,0.03,129.64,129.57,10.0]
[1744589856339,33.94,129.63,129.57,10.0]
[1744589856544,0.42648471,129.62,129.57,10.0]
[1744589856754,33.94,129.63,129.57,10.0]
[1744589857868,21.6015,129.62,129.57,10.0]
[1744589859071,0.42648471,129.61,129.57,10.0]
[1744589859456,6.3348,129.6,129.57,10.0]
[1744589859662,19.07613357,129.59,129.52,0.063]
[1744589859961,29.5481,129.58,129.52,0.063]
[1744589860366,32.3348,129.55,129.52,0.063]
[1744589861565,0.42648471,129.54,129.52,0.0001]
[1744589861766,7.94,129.53,129.52,0.0001]
[1744589861957,7.94,129.53,129.49,0.063]
[1744589861958,0.42648471,129.52,129.49,0.063]
[1744589862142,0.42648471,129.52,129.46,0.063]
[1744589862349,19.07613357,129.52,129.46,0.063]
[1744589862964,26.0,129.49,129.46,0.063]
[1744589863170,19.07613357,129.52,129.46,0.063]
[1744589863171,7.94,129.48,129.46,0.063]
[1744589863865,6.179,129.47,129.46,0.063]
[1744589866061,14.1187,129.48,129.46,0.063]
[1744589867272,6.1761,129.53,129.46,0.063]
[1744589868379,6.1747,129.56,129.48,2.1525]
[1744589869376,6.1747,129.56,129.49,6.178]
[1744589870654,6.1747,129.56,129.48,8.3309]
[1744589870976,21.6115,129.56,129.48,2.1525]
[1744589871474,0.14216157,129.54,129.48,2.1525]
[1744589871661,0.14216157,129.54,129.46,0.063]
[1744589872375,6.1761,129.53,129.46,0.063]
[1744589872874,7.96,129.52,129.46,0.063]
[1744589874066,6.1771,129.51,129.46,0.063]
[1744589874277,21.6199,129.51,129.46,0.063]
[1744589880661,6.1771,129.51,129.46,0.063]
[1744589881276,6.1768,129.52,129.46,0.063]
[1744589881485,6.1761,129.53,129.46,0.063]
[1744589882581,14.0358,129.54,129.46,0.063]
[1744589884486,29.475,129.54,129.46,0.063]
[1744589886183,0.42648471,129.53,129.46,0.063]
[1744589886387,26.0,129.51,129.46,0.063]
[1744589887398,6.1776,129.5,129.46,0.063]
[1744589887886,21.6216,129.5,129.46,0.063]
[1744589890269,6.1776,129.5,129.46,0.063]
[1744589890975,82.9,129.53,129.46,0.063]
[1744589891190,7.86,129.54,129.46,0.063]
[1744589892177,7.86,129.54,129.46,82.6629]
[1744589892484,6.1752,129.55,129.47,8.5691]
[1744589893599,0.03,129.57,129.5,18.64964886]
[1744589893794,0.03,129.57,129.51,6.3399]
[1744589894287,0.03,129.57,129.53,6.1761]
[1744589895389,0.03,129.57,129.53,21.6165]
[1744589895690,0.03,129.57,129.55,6.3399]
[1744589895987,6.1718,129.62,129.55,6.3399]
[1744589896173,6.1716,129.63,129.56,18.64964886]
[1744589896373,6.201,129.64,129.57,2.2292]
[1744589896784,0.03,129.64,129.58,18.64964886]
[1744589896985,0.03,129.64,129.59,0.42648471]
[1744589897285,0.03,129.64,129.6,6.3399]
[1744589897490,0.03,129.64,129.61,6.1723]
[1744589897692,0.03,129.64,129.6,12.5126]
[1744589898195,0.03,129.64,129.61,21.01284886]
[1744589899391,0.03,129.64,129.62,6.1718]
[1744589899897,0.03,129.64,129.61,2.3632]
[1744589900390,0.03,129.64,129.61,8.5355]
[1744589900791,0.03,129.64,129.63,26.0]
[1744589901289,0.03,129.64,129.62,18.64964886]
[1744589901495,0.03,129.64,129.61,27.18514886]
[1744589902086,0.03,129.64,129.62,19.07613357]
[1744589902283,0.03,129.67,129.62,19.07613357]
[1744589903192,0.03,129.67,129.62,18.64964886]
[1744589903900,0.03,129.67,129.61,10.2232]
[1744589904097,0.03,129.67,129.61,2.3632]
[1744589904484,0.03,129.67,129.61,8.5355]
[1744589904896,0.03,129.67,129.61,2.3632]
[1744589905398,0.03,129.67,129.61,8.5355]
[1744589905998,0.03,129.67,129.62,18.64964886]
[1744589906500,0.03,129.67,129.63,0.42648471]
[1744589906680,0.03,129.67,129.64,6.1686]
[1744589907582,0.03,129.67,129.66,2.3065]
[1744589908502,0.03,129.67,129.66,8.4764]
[1744589911103,0.03,129.67,129.66,27.12604886]
[1744589912482,0.03,129.7,129.67,18.64964886]
[1744589913993,0.03,129.7,129.66,8.4764]
[1744589915785,0.03,129.7,129.66,91.0763]
[1744589916387,0.03,129.7,129.67,18.64964886]
[1744589916594,0.03,129.7,129.67,26.48964886]
[1744589917501,6.1952,129.76,129.67,26.48964886]
[1744589917502,0.03,129.76,129.7,6.4069]
[1744589917705,0.03,129.76,129.71,2.178]
[1744589918692,0.03,129.76,129.72,6.1671]
[1744589918891,0.03,129.76,129.71,8.3454]
[1744589920013,4.01429867,129.83,129.78,26.0]
[1744589920311,2.7870396,129.84,129.79,44.64964886]
[1744589920687,6.16939398,129.89,129.84,26.0]
[1744589920889,6.16939398,129.89,129.84,33.84]
[1744589921090,82.9,130.05,129.88,32.4069]
[1744589921299,89.0514,130.05,129.92,27.0]
[1744589921504,89.0514,130.05,129.92,26.0]
[1744589921505,6.1514,130.05,129.92,26.0]
[1744589921705,6.1514,130.05,129.93,9.77749227]
[1744589921892,6.1514,130.05,129.95,0.28432314]
[1744589922093,6.1514,130.05,129.94,0.14216157]
[1744589922094,11.116568,130.05,129.94,0.14216157]
[1744589922287,4.965168,130.05,129.96,26.0]
[1744589922491,4.965168,130.05,129.94,9.77749227]
[1744589922709,4.965168,130.05,129.95,6.1562]
[1744589922911,4.965168,130.05,129.95,21.5467]
[1744589923285,4.965168,130.05,130.0,26.0]
[1744589923489,4.965168,130.05,130.01,9.77749227]
[1744589923701,4.965168,130.05,130.01,92.37739227]
[1744589923898,4.965168,130.05,129.99,2.178]
[1744589924117,4.965168,130.05,129.97,14.5669]
[1744589924499,4.965168,130.05,129.95,6.1562]
[1744589924709,4.965168,130.05,129.94,6.1566]
[1744589924895,4.965168,130.05,129.95,18.64964886]
[1744589925207,6.1505,130.07,129.94,6.1566]
[1744589925208,5.88480393,130.07,129.94,6.1566]
[1744589925418,0.42648471,130.06,129.94,6.1566]
[1744589925630,8.48,130.05,129.94,6.1566]
[1744589925810,5.88480393,130.07,129.95,19.07613357]
[1744589926193,11.1833836,130.1,129.99,18.64964886]
[1744589926906,2.7233836,130.1,129.99,24.80344886]
[1744589927425,2.7233836,130.1,130.0,0.42648471]
[1744589927714,8.8725836,130.1,129.99,6.1538]
[1744589928142,0.28432314,130.09,129.97,14.6151]
[1744589928413,0.42648471,130.07,129.93,2.178]
[1744589928599,0.28432314,130.05,129.93,8.335]
[1744589928804,6.1519,130.04,129.93,8.335]
[1744589929208,0.28432314,130.03,129.92,6.4069]
[1744589929411,0.42648471,130.03,129.92,6.4069]
[1744589929817,0.42648471,130.03,129.91,8.46]
[1744589930118,19.07613357,130.03,129.88,266.8154]
[1744589930304,0.28432314,130.01,129.89,6.1588]
[1744589930900,6.1538,130.0,129.88,272.9748]
[1744589931101,6.1538,130.0,129.88,8.4748]
[1744589931299,6.1538,130.0,129.88,27.12444886]
[1744589931523,21.5384,130.0,129.89,18.64964886]
[1744589932015,6.1538,130.0,129.88,27.12444886]
[1744589932220,6.1538,130.0,129.88,8.4748]
[1744589932409,6.1538,130.0,129.89,18.64964886]
[1744589932609,21.5384,130.0,129.89,18.64964886]
[1744589933525,15.3846,130.0,129.89,24.80834886]
[1744589934524,15.3846,130.0,129.89,6.1587]
[1744589935299,15.3846,130.0,129.89,24.80834886]
[1744589935499,15.3846,130.0,129.89,6.1587]
[1744589935707,6.1533,130.01,129.89,24.80834886]
[1744589936235,6.1533,130.01,129.9,18.64964886]
[1744589936605,6.1533,130.01,129.89,21.5563]
[1744589936800,6.1533,130.01,129.9,18.64964886]
[1744589937107,0.28432314,130.0,129.89,6.1587]
[1744589938924,6.1543,129.99,129.89,6.1587]
[1744589940312,0.42648471,129.98,129.85,18.64964886]
[1744589940658,21.54,129.99,129.88,26.0]
[1744589941015,6.1543,129.99,129.89,18.64964886]
[1744589941409,6.1538,130.01,129.92,26.0]
[1744589941612,6.1519,130.04,129.93,27.25181043]
[1744589941819,15.376,130.08,129.94,2.59972314]
[1744589942022,6.1495,130.09,129.98,0.14216157]
[1744589942205,6.1495,130.09,129.97,18.64964886]
[1744589942206,6.1495,130.09,130.0,6.1538]
[1744589942404,6.1495,130.09,129.99,8.46]
[1744589943228,21.5234,130.09,129.99,14.6142]
[1744589943726,6.1495,130.09,129.99,14.6142]
[1744589944107,6.1495,130.09,129.99,14.614]
[1744589944301,6.1495,130.09,130.0,18.64964886]
[1744589944509,2.7233836,130.1,130.04,18.79181043]
[1744589944908,2.7233836,130.1,130.03,18.64964886]
[1744589945108,2.7233836,130.1,130.04,0.28432314]
[1744589945403,2.7233836,130.1,130.06,18.79181043]
[1744589945817,2.7233836,130.1,130.09,18.64964886]
[1744589946125,2.7233836,130.1,130.09,18.79181043]
[1744589946327,0.03,130.21,130.1,19.07613357]
[1744589946534,0.03,130.21,130.14,44.64964886]
[1744589946908,0.03,130.21,130.15,0.14216157]
[1744589947110,0.03,130.21,130.17,18.79181043]
[1744589947330,0.03,130.21,130.16,8.46]
[1744589948012,0.03,130.21,130.13,18.64964886]
[1744589948313,0.03,130.21,130.17,6.1458]
[1744589948909,0.03,130.21,130.13,18.79181043]
[1744589949106,0.03,130.21,130.13,6.1476]
[1744589949926,0.03,130.21,130.12,14.608]
[1744589950126,0.03,130.21,130.07,15.3754]
[1744589950127,26.0,130.2,130.07,15.3754]
[1744589950322,21.5069,130.19,130.08,24.79964886]
[1744589950528,21.5069,130.19,130.07,14.6102]
[1744589951028,21.5069,130.19,130.08,18.64964886]
[1744589951215,21.5069,130.19,130.07,14.6102]
[1744589951415,21.5069,130.19,130.07,6.1502]
[1744589952729,21.5103,130.17,130.05,8.46]
[1744589952932,26.0,130.14,130.02,6.1528]
[1744589953154,21.5103,130.17,130.06,19.07613357]
[1744589953338,21.5103,130.17,130.06,27.53613357]
[1744589953544,21.5103,130.17,130.06,8.46]
[1744589954218,19.07613357,130.16,130.02,14.6128]
[1744589954552,19.07613357,130.14,130.02,8.46]
[1744589954737,21.5168,130.13,130.02,14.6128]
[1744589955223,21.5168,130.13,130.02,14.6127]
[1744589955424,21.5168,130.13,130.02,8.46]
[1744589955841,21.5168,130.13,130.02,14.6127]
[1744589956023,21.5168,130.13,130.02,8.46]
[1744589956352,21.5168,130.13,130.02,14.6127]
[1744589956651,21.5168,130.13,130.02,8.46]
[1744589956948,19.07613357,130.12,129.98,6.1547]
[1744589957651,0.42648471,130.08,129.98,6.1547]
[1744589957954,6.2102,130.11,129.99,18.64964886]
[1744589958749,6.1491,130.1,130.0,6.1538]
[1744589959471,21.5218,130.1,129.98,6.1547]
[1744589959664,19.07613357,130.09,129.97,8.66]
[1744589959868,19.07613357,130.09,129.94,6.1566]
[1744589960271,19.07613357,130.09,129.95,18.64964886]
[1744589960637,0.42648471,130.09,129.95,18.64964886]
[1744589960944,21.5251,130.08,129.96,6.1557]
[1744589961143,8.66,130.07,129.96,6.1557]
[1744589961739,6.151,130.06,129.96,6.1557]
[1744589962536,14.8106,130.07,129.97,18.64964886]
[1744589963034,6.1501,130.08,129.99,18.64964886]
[1744589963255,6.1491,130.1,129.99,18.64964886]
[1744589963959,21.5218,130.1,130.0,6.1538]
[1744589964655,21.5218,130.1,129.99,6.1542]
[1744589965032,19.07613357,130.09,129.95,15.3894]
[1744589966154,6.15,130.08,129.99,18.64964886]
[1744589966344,6.15,130.08,129.98,26.0]
[1744589966736,21.5251,130.08,129.98,26.0]
[1744589967255,21.5251,130.08,129.96,19.07613357]
[1744589967459,21.5251,130.08,129.95,21.5456]
[1744589967831,19.07613357,130.07,129.94,6.1565]
[1744589968033,0.42648471,130.05,129.93,0.063]
[1744589968437,21.5285,130.06,129.93,18.71264886]
[1744589968649,30.1885,130.06,129.93,18.71264886]
[1744589969054,0.42648471,130.05,129.94,6.1566]
[1744589969351,30.1885,130.06,129.94,6.1566]
[1744589969932,9.08648471,130.05,129.93,6.2199]
[1744589970138,6.0479,130.04,129.93,6.2199]
[1744589970952,6.0479,130.04,129.94,18.64964886]
[1744589971150,6.1524,130.03,129.95,6.1562]
[1744589972460,6.1524,130.03,129.93,15.4559]
[1744589972648,6.1524,130.03,129.93,34.10554886]
[1744589972958,6.0479,130.04,129.94,18.64964886]
[1744589973139,6.1505,130.07,129.96,18.64964886]
[1744589973538,12.1981,130.08,129.97,0.42648471]
[1744589973742,6.0479,130.08,130.0,18.64964886]
[1744589973941,6.1492,130.1,130.0,18.64964886]
[1744589974261,6.1492,130.1,130.0,27.30964886]
[1744589974442,6.1492,130.1,130.01,6.1533]
[1744589976364,21.5219,130.1,130.01,6.1533]
[1744589977672,0.42648471,130.09,129.96,24.0493]
[1744589978189,19.07613357,130.09,129.96,6.1557]
[1744589978466,0.42648471,130.06,129.96,6.1557]
[1744589978646,8.66,130.05,129.93,24.1152]
[1744589979051,0.42648471,130.04,129.94,6.1566]
[1744589979246,0.14216157,130.02,129.93,14.88]
[1744589979464,6.47438471,130.02,129.93,0.063]
[1744589979663,6.1533,130.01,129.93,0.063]
[1744589980264,6.0479,130.02,129.94,26.0]
[1744589980448,6.1533,130.01,129.93,0.063]
[1744589980865,21.5367,130.01,129.93,0.063]
[1744589982386,6.1533,130.01,129.93,0.063]
[1744589982679,6.0479,130.02,129.93,0.063]
[1744589982881,8.66,130.06,129.95,0.42648471]
[1744589983386,14.811,130.06,129.95,0.42648471]
[1744589983882,14.811,130.06,129.96,6.1557]
[1744589985454,14.811,130.06,129.96,21.545]
[1744589985856,6.0479,130.07,129.97,18.64964886]
[1744589986055,6.0479,130.07,129.99,0.14216157]
[1744589986254,2.2151,130.08,129.99,0.42648471]
[1744589987788,8.54,130.1,129.99,19.07613357]
[1744589987956,6.0479,130.11,130.03,21.5334]
[1744589988150,6.0479,130.11,130.03,30.0734]
[1744589989591,12.1965,130.11,130.03,14.6924]
[1744589989883,6.0479,130.11,130.02,18.64964886]
[1744589990053,12.1967,130.11,130.01,21.5367]
[1744589990787,0.14216157,130.1,129.96,6.1557]
[1744589990989,8.54,130.09,129.96,6.1557]
[1744589991157,8.54,130.09,129.97,18.64964886]
[1744589991556,8.54,130.09,130.0,26.0]
[1744589991776,8.54,130.09,130.01,26.0]
[1744589991985,6.15,130.08,129.99,6.1543]
[1744589992581,6.1491,130.1,129.99,6.1543]
[1744589992761,12.1967,130.11,130.01,0.42648471]
[1744589993373,12.1967,130.11,130.0,18.64964886]
[1744589993569,27.5683,130.11,130.0,18.64964886]
[1744589993954,12.1967,130.11,130.01,21.5367]
[1744589994259,12.1967,130.11,130.02,18.64964886]
[1744589994459,6.0479,130.11,130.02,18.64964886]
[1744589994660,12.1965,130.11,130.03,8.54]
[1744589995688,12.1965,130.11,130.04,6.1519]
[1744589997076,12.1965,130.11,130.03,14.6922]
[1744589997659,27.5681,130.11,130.03,14.6922]
[1744589998281,27.5681,130.11,130.03,8.54]
[1744589998656,27.5681,130.11,130.03,14.6923]
[1744589998975,27.5681,130.11,130.0,18.64964886]
[1744589999772,6.1486,130.11,130.03,26.0]
[1744590000076,6.1482,130.12,130.02,19.07613357]
[1744590000666,6.3617,130.14,130.06,19.07613357]
[1744590000877,0.03,130.17,130.08,0.42648471]
[1744590001079,0.03,130.17,130.08,83.02638471]
[1744590001283,0.03,130.17,130.1,18.64964886]
[1744590001659,0.03,130.17,130.09,21.5234]
[1744590002960,0.03,130.17,130.13,18.64964886]
[1744590003175,0.03,130.17,130.13,27.18964886]
[1744590003489,0.03,130.17,130.14,6.1472]
[1744590005593,0.03,130.17,130.14,21.5152]
[1744590005790,3.31531795,130.23,130.18,26.0]
[1744590005970,3.31531795,130.23,130.19,8.54]
[1744590007263,1.795e-05,130.23,130.22,51.21953357]
[1744590007492,1.795e-05,130.23,130.22,133.81943357]
[1744590008686,6.2494,130.33,130.26,26.0]